Cogmind - Beta 16.1 @@@ ROGUE MODE // 2026.04.18 @ 19:13:22 Player: beans Result: Destroyed by VL-MOE(j) with Overtuned Pulse Rifle Performance ------------- Evolutions (0) 0 Regions Visited (5) 1000 Robots Destroyed (7) 35 Value Destroyed (174) 174 Prototype IDs (9) 180 Alien Tech Used (0) 0 Bonus (870) 870 TOTAL SCORE: 2259 Bonus ------- Follower Combat Kills 70 Registered with UFD 300 Met Optimus in HQ 500 Cogmind --------- Core Integrity 0/250 Matter 300/300 Energy 66/100 System Corruption 0% Temperature Cool (24) Movement Core (50) Location -7/Scraptown Parts ------- > --- POWER (1) -------- (None) > --- PROPULSION (2) --- (None) > --- UTILITY (2) ------ Armor Integrity Analyzer > --- WEAPON (2) ------- (None) > --- INVENTORY (5) ---- Experimental Terrain Scanner Surveybot 24 Chip Helical Railgun Junk Cannon (6) Peak State ------------ > --- POWER ------------ Makeshift Power Source > --- PROPULSION ------- Xenon Bombardment Thruster Nuclear Pulse Thruster > --- UTILITY ---------- Armor Integrity Analyzer Matter Filter > --- WEAPON ----------- Junk Cannon > --- INVENTORY -------- Xenon Bombardment Thruster Experimental Terrain Scanner Helical Railgun [Rating: 35] Favorites ----------- Power Makeshift Power Source Engine Makeshift Power Source Propulsion Xenon Bombardment Thruster Wheel Wheel Flight Unit Xenon Bombardment Thruster Utility Armor Integrity Analyzer Device Matter Filter Processor Armor Integrity Analyzer Protection Utility Shielding Weapon Light Assault Rifle Ballistic Gun Light Assault Rifle Ballistic Cannon Assault Cannon Special Weapon Junk Cannon Build | -11 -10 -10 -10 -7 -7 ------- Run | Yrd Mat Min Sub Rec Scr Slots Evolved . | . . . . . . Power . | . . . . . . Propulsion . | . . . . . . Utility . | . . . . . . Weapon . | . . . . . . Parts Attached 19 | 4 . 1 . 3 11 Power 2 | . . . . 1 1 Engine 2 | . . . . 1 1 Core . | . . . . . . Reactor . | . . . . . . Propulsion 8 | 2 . . . 2 4 Treads . | . . . . . . Leg . | . . . . . . Wheel 2 | 2 . . . . . Hover . | . . . . . . Flight 6 | . . . . 2 4 Utility 4 | . . 1 . . 3 Device 2 | . . . . . 2 Storage . | . . . . . . Processor 1 | . . . . . 1 Hackware . | . . . . . . Protection 1 | . . 1 . . . Artifact . | . . . . . . Weapon 5 | 2 . . . . 3 Energy Gun . | . . . . . . Energy Cannon . | . . . . . . Ballistic Gun 3 | 2 . . . . 1 Ballistic Cannon 1 | . . . . . 1 Launcher . | . . . . . . Special Weapon 1 | . . . . . 1 Impact Weapon . | . . . . . . Slashing Weapon . | . . . . . . Piercing Weapon . | . . . . . . Special Melee Weapon . | . . . . . . Unidentified Prototypes 2 | . . . . . 2 Parts Lost 8 | . . . 4 . 4 Power 1 | . . . . . 1 Propulsion 5 | . . . 2 . 3 Utility . | . . . . . . Weapon 2 | . . . 2 . . Highest Loss Streak 4 | . . . 4 . 3 To Critical Strikes . | . . . . . . Average Backups 2 | . . . . 4 3 Power . | . . . . . . Propulsion 1 | . . . . 2 1 Utility . | . . . . 1 . Weapon . | . . . . . . Tool/Special . | . . . . . . Unused Backups 7 | 1 . . . 1 5 Power . | . . . . . . Propulsion 4 | 1 . . . . 3 Utility 3 | . . . . 1 2 Weapon . | . . . . . . Tool/Special . | . . . . . . Average Slot Usage (%) 62 | . 57 67 51 40 72 Engine 7 | . . . . 8 12 Wheel 7 | . 28 28 17 . . Flight 16 | . . . . 17 27 Device 7 | . . . . . 13 Processor 7 | . . . . . 13 Protection 6 | . . 10 14 14 . Ballistic Gun 7 | . 28 28 18 . . Peak Build Rating 35 | 4 4 5 5 16 35 Average Rating 15 | 2 4 4 3 10 24 On Entrance 5 | . 4 4 5 1 16 Avg Prop Armor Cover (%) . | . . . . . . Naked Turns . | . . . . . . Heaviest Build 21 | 3 3 4 4 10 21 Greatest Support 26 | 26 26 26 26 12 12 Greatest Overweight (x) 1 | . . . . . 1 Average Overweight (x) . | . . . . . . Largest Inventory Capacity 5 | 5 5 5 5 5 5 Average Capacity 5 | 5 5 5 5 5 5 Most Carried 5 | 2 . 1 2 5 5 Average Carried 3 | . . . . 4 4 Final Capacity 5 | 5 5 5 5 5 5 Final Carried 5 | . . . 2 5 5 Class Distribution -------------------- 97% | Mutant Dominant Class ---------------- Mutant | -10/Materials Mutant | -10/Mines Mutant | -10/Subcaves Mutant | -7/Recycling Mutant | -7/Scraptown Resources | -11 -10 -10 -10 -7 -7 ----------- Run | Yrd Mat Min Sub Rec Scr Matter Collected 565 | 218 . 32 89 . 226 Remotely . | . . . . . . Salvage Created 187 | . . . 138 . 49 Parts 12 | . . . 7 . 5 Haulers Intercepted . | . . . . . . Recyclers Shooed . | . . . . . . Parts Field Recycled . | . . . . . . Retrieved Matter . | . . . . . . Parts Self-Destructed 20 | . . . 14 . 6 Prevented . | . . . . . . Parts Restored . | . . . . . . Kills | -11 -10 -10 -10 -7 -7 ------- Run | Yrd Mat Min Sub Rec Scr Combat Hostiles Destroyed 7 | . . . 5 . 2 Guns 6 | . . . 5 . 1 Cannons 1 | . . . . . 1 Classes Destroyed 3 | . . . 2 . 1 Swarmer 3 | . . . 3 . . Subdweller 2 | . . . 2 . . Federalist 2 | . . . . . 2 Best Kill Streak 3 | . . . 3 . 1 Combat Bots Only 3 | . . . 3 . 1 Max Kills in Single Turn 1 | . . . 1 . 1 Gunslinging . | . . . . . . Exploded . | . . . . . . Melee . | . . . . . . Uniques/NPCs Destroyed . | . . . . . . Combat | -11 -10 -10 -10 -7 -7 -------- Run | Yrd Mat Min Sub Rec Scr Hostile Shots Fired 51 | . . . 35 . 16 Missed 13 | . . . 7 . 6 Hits 38 | . . . 28 . 10 Projectile 38 | . . . 28 . 10 Critical Strikes 1 | . . . . . 1 Damage Taken 719 | . . . 523 . 196 Core 259 | . . . 216 . 43 Absorbed by Shields . | . . . . . . Core Remaining (%) 100 | 100 . . . . . Volleys Fired 37 | . . . 26 . 11 Largest 2 | . . . 2 . 1 Hottest 40 | . . . 40 . 38 Shots Fired 63 | . . . 52 . 11 Gun 55 | . . . 52 . 3 Cannon . | . . . . . . Launcher . | . . . . . . Special 8 | . . . . . 8 Kinetic 55 | . . . 52 . 3 Thermal . | . . . . . . Explosive . | . . . . . . Electromagnetic . | . . . . . . Impact 8 | . . . . . 8 Robot Hit Streak 7 | . . . 7 . 5 Robot Miss Streak 3 | . . . 3 . 1 Penetration Max . | . . . . . . Secondary Targets 2 | . . . 2 . . Max Gunslinging Chain 1 | . . . 1 . . Shots Hit Robots 36 | . . . 32 . 4 Core Hits 12 | . . . 11 . 1 Critical Kills . | . . . . . . Critical Parts Destroyed 1 | . . . . . 1 Critical Strikes 1 | . . . . . 1 Smash 1 | . . . . . 1 Melee Attacks . | . . . . . . Impact . | . . . . . . Slashing . | . . . . . . Piercing . | . . . . . . Sneak Attacks . | . . . . . . Combat Hostiles . | . . . . . . Follow-up Attacks . | . . . . . . Damage Inflicted 465 | . . . 319 . 146 Guns 343 | . . . 319 . 24 Cannons . | . . . . . . Explosions . | . . . . . . Melee . | . . . . . . Ramming . | . . . . . . Kinetic 343 | . . . 319 . 24 Thermal . | . . . . . . Explosive . | . . . . . . Electromagnetic . | . . . . . . Impact 122 | . . . . . 122 Slashing . | . . . . . . Piercing . | . . . . . . Highest Corruption . | . . . . . . Average Corruption . | . . . . . . Corruption Purged . | . . . . . . Corruption Blocked . | . . . . . . Overload Shots . | . . . . . . Overflow Damage 96 | . . . . . 96 Projectiles 96 | . . . . . 96 Explosions . | . . . . . . Melee . | . . . . . . Knockbacks 1 | . . . . . 1 Impact 1 | . . . . . 1 Kinetic . | . . . . . . Secondary . | . . . . . . Self-Inflicted Damage . | . . . . . . Shots . | . . . . . . Rammed . | . . . . . . Targets Rammed . | . . . . . . Kicked . | . . . . . . Crushed . | . . . . . . Highest Temperature 50 | . . . . . 50 Average Temperature 23 | . . . . . 23 Received Heat Transfer 157 | . . . 24 . 133 Siege Activations . | . . . . . . Martial Activations . | . . . . . . Shielding Activations . | . . . . . . Robots Disrupted . | . . . . . . Combat Hostiles . | . . . . . . Robots Corrupted . | . . . . . . Combat Hostiles . | . . . . . . Parts Fried 1 | . . . . . 1 Impact Corruptions 3 | . . . . . 3 Robots Melted . | . . . . . . Combat Hostiles . | . . . . . . Parts Melted . | . . . . . . Heat Transferred . | . . . . . . Parts Sabotaged . | . . . . . . Parts Stolen . | . . . . . . Parts Stripped . | . . . . . . Power Chain Reactions . | . . . . . . Alert | -11 -10 -10 -10 -7 -7 ------- Run | Yrd Mat Min Sub Rec Scr Maximum Alert Level . | . . . . . . Low Security (%) 100 | 100 100 100 . 100 . Level 1 . | . . . . . . Level 2 . | . . . . . . Level 3 . | . . . . . . Level 4 . | . . . . . . Level 5 . | . . . . . . High Security . | . . . . . . Max Security . | . . . . . . Peak Influence . | . . . . . . Initial . | . . . . . . Average . | . . . . . . Influence Increases 181 | . . . 181 . . Destroy 0b10 Robot/C 140 | . . . 140 . . Allied During Kill 11 | . . . 11 . . Lose Combat Pursuer 30 | . . . 30 . . Influence Decreases 181 | . . . 181 . . Time Decay 140 | . . . 140 . . Lost Part 21 | . . . 21 . . Lost Ally 20 | . . . 20 . . Squads Dispatched . | . . . . . . Investigation . | . . . . . . Extermination . | . . . . . . Reinforcement . | . . . . . . Assault . | . . . . . . Garrison . | . . . . . . Intercept . | . . . . . . Searches Triggered . | . . . . . . Construction Impeded . | . . . . . . Haulers Reinforced . | . . . . . . Active Scanning Responses . | . . . . . . Cargo Convoy Interrupts . | . . . . . . Stealth | -11 -10 -10 -10 -7 -7 --------- Run | Yrd Mat Min Sub Rec Scr Distress Signals . | . . . . . . Communications Jammed . | . . . . . . Distress Signals . | . . . . . . Times Spotted 46 | . . . 12 . 34 Peak Tracking Total 14 | . . . 5 . 14 Tactical Retreats 5 | . . . 3 . 2 Traps | -11 -10 -10 -10 -7 -7 ------- Run | Yrd Mat Min Sub Rec Scr Traps Triggered . | . . . . . . Indirectly . | . . . . . . Trap Hack Attempts . | . . . . . . Triggered . | . . . . . . Disarmed . | . . . . . . Reprogrammed . | . . . . . . Reused . | . . . . . . Traps Extracted . | . . . . . . Installed . | . . . . . . Triggered . | . . . . . . Machines | -11 -10 -10 -10 -7 -7 ---------- Run | Yrd Mat Min Sub Rec Scr Machines Disabled 4 | . . . . . 4 Max in Single Turn 1 | . . . . . 1 Machines Repaired . | . . . . . . Machines Dismantled . | . . . . . . Machines Sabotaged . | . . . . . . Overloaded Fab Kills . | . . . . . . Hacking | -11 -10 -10 -10 -7 -7 --------- Run | Yrd Mat Min Sub Rec Scr Machines Accessed 2 | . . . . 2 . Terminals . | . . . . . . Fabricators . | . . . . . . Repair Stations . | . . . . . . Recycling Units . | . . . . . . Scanalyzers . | . . . . . . Garrison Access . | . . . . . . Total Hacks 7 | . . . . 7 . Successful 7 | . . . . 7 . Failed . | . . . . . . Catastrophic . | . . . . . . Database Lockouts . | . . . . . . Manual . | . . . . . . Terminals . | . . . . . . Fabricators . | . . . . . . Repair Stations . | . . . . . . Recycling Units . | . . . . . . Scanalyzers . | . . . . . . Garrison Access . | . . . . . . Terminal Hacks 7 | . . . . 7 . Record 6 | . . . . 6 . Release Object 1 | . . . . 1 . Fabricator Hacks . | . . . . . . Repair Station Hacks . | . . . . . . Recycling Unit Hacks . | . . . . . . Scanalyzer . | . . . . . . Garrison Access Hacks . | . . . . . . Unauthorized Hacks . | . . . . . . Terminals . | . . . . . . Fabricators . | . . . . . . Repair Stations . | . . . . . . Recycling Units . | . . . . . . Scanalyzers . | . . . . . . Garrison Access . | . . . . . . Data Cores Recovered . | . . . . . . Used . | . . . . . . Hacking Detections . | . . . . . . Full Trace Events . | . . . . . . Feedback Events . | . . . . . . Feedback Blocked . | . . . . . . Robot Schematics Acquired . | . . . . . . Robots Built . | . . . . . . Authchips . | . . . . . . Time . | . . . . . . Total Robot Build Rating . | . . . . . . Part Schematics Acquired . | . . . . . . Parts Built . | . . . . . . Authchips . | . . . . . . Time . | . . . . . . Total Part Build Rating . | . . . . . . Part Studies Acquired . | . . . . . . Parts Repaired . | . . . . . . Time . | . . . . . . Parts Recycled . | . . . . . . Recycled Matter . | . . . . . . Retrieved Matter . | . . . . . . Retrieved Components . | . . . . . . Parts Scanalyzed . | . . . . . . Part Schematics Acquired . | . . . . . . Parts Damaged . | . . . . . . Bothacking | -11 -10 -10 -10 -7 -7 ------------ Run | Yrd Mat Min Sub Rec Scr Used RIF Installer . | . . . . . . Robots Hacked . | . . . . . . Non-combat . | . . . . . . Combat . | . . . . . . Robot Hacks Applied . | . . . . . . Relay Couplers Released . | . . . . . . Fabnet Peak Effective % . | . . . . . . Robots Rewired . | . . . . . . Allies Hacked . | . . . . . . Hacks Repelled . | . . . . . . Allies | -11 -10 -10 -10 -7 -7 -------- Run | Yrd Mat Min Sub Rec Scr Total Allies 2 | . . 2 . . . Largest Group 2 | . . 2 2 . . Highest-Rated Group 45 | . . 41 45 . . Highest-Rated Ally 31 | . . 31 31 . . Total Orders . | . . . . . . Ally Attacks 30 | . . . 30 . . Total Damage 546 | . . . 546 . . Kills 5 | . . . 5 . . Allies Corrupted . | . . . . . . Allies Melted 4 | . . . . . 4 Intel | -11 -10 -10 -10 -7 -7 ------- Run | Yrd Mat Min Sub Rec Scr Active Infowar (turns) . | . . . . . . Robot Analysis Total . | . . . . . . Derelict Logs Recovered . | . . . . . . Drone Launches . | . . . . . . Drone Recoveries . | . . . . . . Exploration | -11 -10 -10 -10 -7 -7 ------------- Run | Yrd Mat Min Sub Rec Scr Turns Passed 1765 | 40 19 125 486 154 941 Spaces Moved 1846 | 44 21 71 487 309 914 Core 361 | 23 . . 238 99 1 Treads . | . . . . . . Legs . | . . . . . . Wheels 362 | 21 21 71 249 . . Hover . | . . . . . . Flight 1123 | . . . . 210 913 Fastest Speed 32 | 50 90 90 50 37 32 Average Speed 53 | 69 90 90 70 41 44 Slowest Speed 117 | 90 90 90 90 50 117 Overloaded Moves . | . . . . . . Propulsion Burnouts . | . . . . . . Robots Hopped 2 | . . . . 2 . Potential Cave-ins . | . . . . . . Cave-ins Triggered . | . . . . . . Exploration Rate (%) 25 | 3 4 21 20 64 40 Regions Visited 5 Branch Regions 4 Pre-discovered Areas 1 | . . 1 . . . Known Exits Taken . | . . . . . . Unknown Exits Taken 5 | 1 1 1 1 1 . Scrap Searched 4 | . . 1 . . 3 Spaces Dug . | . . . . . . Terrain Destroyed . | . . . . . . Melee . | . . . . . . Projectile . | . . . . . . AOE . | . . . . . . Terrain Rammed . | . . . . . . Walls Destroyed . | . . . . . . Machines Disabled . | . . . . . . Actions | -11 -10 -10 -10 -7 -7 --------- Run | Yrd Mat Min Sub Rec Scr Total 2559 | 53 20 131 582 332 1441 Wait 615 | . . 59 68 17 471 Move 1837 | 43 20 70 486 304 914 Hop 2 | . . . . 2 . Pick Up 17 | 5 . 1 2 5 4 Fast Attach 10 | . . . . 2 8 Attach 16 | 4 . 1 . 1 10 Detach 10 | . . . . . 10 Swap 1 | . . . . . 1 Drop 14 | 1 . . . 1 12 Fire 37 | . . . 26 . 11 Melee . | . . . . . . Ram . | . . . . . . Kick . | . . . . . . Crush . | . . . . . . Escape Stasis . | . . . . . . Rewire . | . . . . . . Trap . | . . . . . . Miscellaneous . | . . . . . . Route ------- -11/Scrapyard -10/Materials -10/Mines (discovered 2 exits: [*Mat] / [*Sub]) -10/Subcaves -7/Recycling -7/Scraptown (discovered 2 exits: Fac x2) History --------- Turn | Location | Event 4 | -11/Scrapyard | Discovered new exit (range 14) 41 | -11/Scrapyard | Entered Materials 41 | -10/Materials | Discovered new exit (range 7) 60 | -10/Materials | Entered Mines 101 | -10/Mines | Learned location of Storage (-7) 119 | -10/Mines | Discovered new exit (range 11) 173 | -10/Mines | Discovered new exit (range 3) 185 | -10/Mines | Entered Subcaves 185 | -10/Subcaves | Accompanied by 2 allies 186 | -10/Subcaves | Approached by a straggling Scientist 190 | -10/Subcaves | Led the pair of lost Derelicts to an unsafe place 247 | -10/Subcaves | Discovered new exit (range 15) 298 | -10/Subcaves | A swath of the cavern ceiling suddenly collapsed 318 | -10/Subcaves | Build established: Mutant 479 | -10/Subcaves | Ambushed by Subdwellers from Twisted Machinery 507 | -10/Subcaves | Core integrity fell below 50% 535 | -10/Subcaves | Lost 4 parts (2n2w) 624 | -10/Subcaves | Core integrity fell below 20% 671 | -10/Subcaves | Entered Recycling 813 | -7/Recycling | Scanned before Scraplab entrance 819 | -7/Recycling | Entered Scraplab 824 | -7/Recycling | Discovered new exit (range 2) 825 | -7/Recycling | Entered Scraptown 838 | -7/Scraptown | Heard Great Nut preacher, LISTEN AND RECITE! 881 | -7/Scraptown | Visited UFD Registry 909 | -7/Scraptown | Registered with UFD as "Kineticell" 932 | -7/Scraptown | Visited Curators Association 946 | -7/Scraptown | Visited DA-N13 Charitable Foundation 947 | -7/Scraptown | Found DCF Scrap (29 items) 956 | -7/Scraptown | Visited Junk Cannon Lab 961 | -7/Scraptown | Found Prototype Special Weapon 980 | -7/Scraptown | Identified Junk Cannon 1071 | -7/Scraptown | Visited Observation Area 1083 | -7/Scraptown | Visited Supply Room 1089 | -7/Scraptown | Visited Infowarlord's Domain 1093 | -7/Scraptown | Found Exp. Terrain Scanner 1121 | -7/Scraptown | Met Optimus 1121 | -7/Scraptown | Accepted into 0bPrime 1521 | -7/Scraptown | Civil war broke out across Scraptown 1593 | -7/Scraptown | Lost 5 allies 1595 | -7/Scraptown | Identified exit to Factory 1604 | -7/Scraptown | Found Surveybot 24 Chip 1743 | -7/Scraptown | Lost 9 allies 1766 | -7/Scraptown | Destroyed by VL-MOE(j) with Overtuned Pulse Rifle Last Messages --------------- get out of here, Kineticell! Our real resources are elsewhere, after all. S1-AQ1(j) destroyed. 1S-V5B(g): "We are one!" Slug penetrates Machine. Penetrated by Bolt. Mak. Power Source destroyed. Bolt penetrates Machine. 1S-V5B(g) suffers critical hit (Burn). 1S-V5B(g) destroyed. Machine disabled. Connecting with UFD Projects... Current location identified: Scraptown Acquired 10 matter. Cesium-ion Thruster destroyed. 2C-INZ(j): "It's not too late to join us in victory!" 2C-INZ(j) destroyed. Cesium-ion Thruster destroyed. Dropped Rocket Booster. Map ----- +----------------------------------------------------+ | ?????????????????????????????????????????????????? | | ?????????????????????????????????????????????????? | | ?????????????????????????????????????????????????? | | ?????????????????????????????????????????????????? | | ?????????????????????????????????????????????????? | | ?????????????????????????????????????????????????? | | ?????????????????????????????????????????????????? | | ???????????????????????????????????